bitfinex/quotes_SOLUSD_20260108
["timestamp","ask_amount","ask_price","bid_price","bid_amount"]
[1767855633701,0.28432314,134.82,134.78,0.68395408]
[1767855634003,13.68216157,134.82,134.78,9.69285699]
[1767855634201,0.21521219,134.86,134.79,9.69285699]
[1767855634401,0.21405006,134.84,134.77,0.68395408]
[1767855634631,0.21405006,134.84,134.79,9.00890291]
[1767855634832,0.5,134.87,134.81,9.00890291]
[1767855634833,0.21521219,134.86,134.81,9.00890291]
[1767855635009,14.04,134.87,134.82,9.69285699]
[1767855635214,0.5,134.87,134.84,9.69285699]
[1767855635408,13.54,134.9,134.86,9.00890291]
[1767855635833,13.54,134.9,134.85,9.69285699]
[1767855636012,13.54,134.9,134.8,0.28432314]
[1767855636013,13.54,134.9,134.86,9.69285699]
[1767855636207,9.2241151,134.95,134.89,9.69285699]
[1767855636405,13.54,134.95,134.91,9.00890291]
[1767855636608,22.54890291,134.95,134.9,9.69285699]
[1767855636839,9.00890291,134.94,134.9,0.68395408]
[1767855637217,22.54890291,134.95,134.9,0.68395408]
[1767855637533,13.54,134.95,134.91,9.69285699]
[1767855637728,13.54,134.95,134.91,0.68395408]
[1767855638320,37.28,135.06,134.93,9.00890291]
[1767855638321,9.2241151,134.99,134.93,9.00890291]
[1767855638629,13.54,134.98,134.93,9.69285699]
[1767855638828,9.00890291,134.97,134.93,0.68395408]
[1767855639010,13.54,134.98,134.93,9.69285699]
[1767855639211,9.00890291,134.97,134.93,0.68395408]
[1767855639404,9.00890291,134.94,134.89,0.68395408]
[1767855639638,9.00890291,134.94,134.89,9.69285699]
[1767855639639,13.54,134.94,134.89,9.69285699]
[1767855639812,0.28432314,134.95,134.91,9.00890291]
[1767855640016,13.82432314,134.95,134.9,0.68395408]
[1767855640210,22.83322605,134.95,134.9,0.68395408]
[1767855640929,13.82432314,134.95,134.9,9.69285699]
[1767855641240,22.83322605,134.95,134.9,9.69285699]
[1767855641637,9.00890291,134.94,134.88,0.68395408]
[1767855641848,9.29322605,134.93,134.88,0.68395408]
[1767855642339,13.54,134.95,134.9,9.69285699]
[1767855642820,13.54,134.95,134.9,0.68395408]
[1767855643019,13.54,134.95,134.91,0.68395408]
[1767855643318,13.54,134.95,134.91,9.69285699]
[1767855643520,13.54,134.95,134.91,0.68395408]
[1767855644448,13.54,134.95,134.87,0.68395408]
[1767855644449,9.29322605,134.94,134.87,0.68395408]
[1767855644739,9.29322605,134.94,134.83,18.54053871]
[1767855644740,13.54,134.95,134.9,0.68395408]
[1767855644918,13.54,134.95,134.91,0.68395408]
[1767855645829,0.14216157,134.96,134.91,0.68395408]
[1767855646039,13.54,134.95,134.91,0.68395408]
[1767855647053,13.54,134.95,134.92,0.68395408]
[1767855647247,13.54,134.95,134.92,9.69285699]
[1767855647417,13.54,134.98,134.93,9.69285699]
[1767855647617,13.54,134.98,134.94,9.00890291]
[1767855648242,13.54,134.98,134.95,9.00890291]
[1767855648453,13.54,134.98,134.93,0.68395408]
[1767855648751,13.54,134.98,134.94,9.00890291]
[1767855648918,13.54,134.98,134.93,0.68395408]
[1767855649247,22.54890291,134.98,134.93,0.68395408]
[1767855649632,13.54,134.98,134.94,9.69285699]
[1767855650965,13.54,134.98,134.96,0.68395408]
[1767855651136,13.54,134.98,134.96,9.69285699]
[1767855651325,0.35621163,135.01,134.96,9.00890291]
[1767855651665,9.10905341,135.0,134.94,0.68395408]
[1767855651968,9.10905341,135.0,134.95,9.00890291]
[1767855652131,9.50613712,134.99,134.92,0.68395408]
[1767855652327,0.1012781,134.98,134.93,9.00890291]
[1767855652529,0.78432314,134.99,134.94,9.00890291]
[1767855653047,0.78432314,134.99,134.95,9.00890291]
[1767855653048,0.5,134.99,134.95,9.00890291]
[1767855653253,0.5,134.99,134.96,9.00890291]
[1767855653433,0.5,134.99,134.95,9.00890291]
[1767855654651,0.5,134.99,134.94,0.68395408]
[1767855654854,0.5,134.99,134.94,9.69285699]
[1767855655651,0.5,134.99,134.94,0.68395408]
[1767855655953,0.5,134.99,134.95,0.68395408]
[1767855656132,0.5,134.99,134.95,9.69285699]
[1767855656759,0.5,134.99,134.95,0.68395408]
[1767855657348,0.5,134.99,134.95,9.69285699]
[1767855657860,0.28432314,135.0,134.95,9.69285699]
[1767855658035,13.639,135.01,134.96,9.00890291]
[1767855658248,13.54,135.01,134.96,9.69285699]
[1767855658446,22.54890291,135.01,134.97,0.68395408]
[1767855659055,13.54,135.01,134.97,0.68395408]
[1767855659568,22.7641151,135.05,134.99,9.69285699]
[1767855659761,13.54,135.05,135.01,9.69285699]
[1767855659970,9.00890291,135.04,135.01,0.68395408]
[1767855660170,9.00890291,135.04,134.99,9.69285699]
[1767855660349,0.49611788,135.01,134.95,0.68395408]
[1767855660552,9.00890291,135.0,134.95,0.68395408]
[1767855660982,9.00890291,134.98,134.93,0.68395408]
[1767855661272,9.00890291,134.96,134.93,0.68395408]
[1767855661479,0.28432314,134.96,134.91,0.68395408]
[1767855661779,9.29322605,134.96,134.91,0.68395408]
[1767855661958,13.82432314,134.96,134.91,9.69285699]
[1767855662487,13.82432314,134.96,134.91,0.68395408]
[1767855662982,22.83322605,134.96,134.91,0.68395408]
[1767855663190,13.82432314,134.96,134.92,0.69650677]
[1767855663479,13.54,134.96,134.93,0.69650677]
[1767855663977,13.54,134.96,134.9,7.41273093]
[1767855664172,9.00890291,134.95,134.91,0.69650677]
[1767855664485,9.00890291,134.95,134.89,7.41331202]
[1767855664486,9.00890291,134.94,134.89,0.69650677]
[1767855664675,9.50613712,134.95,134.89,9.70540968]
[1767855665095,0.49611788,134.93,134.87,0.69650677]
[1767855665257,9.2185312,134.89,134.82,0.69650677]
[1767855665460,9.00890291,134.87,134.82,0.69650677]
[1767855665961,13.9288512,134.88,134.82,0.69650677]
[1767855666178,9.00890291,134.86,134.82,0.69650677]
[1767855666388,9.29322605,134.86,134.82,0.69650677]
[1767855666679,13.54,134.88,134.82,0.69650677]
[1767855666865,9.00890291,134.86,134.82,0.69650677]
[1767855667068,0.28432314,134.87,134.82,0.69650677]
[1767855667263,9.29322605,134.87,134.82,0.69650677]
[1767855667683,0.28432314,134.87,134.83,0.69650677]
[1767855668566,9.29322605,134.87,134.83,0.69650677]
[1767855668755,22.54890291,134.88,134.83,0.69650677]
[1767855670288,9.00890291,134.87,134.83,0.69650677]
[1767855672564,9.00890291,134.86,134.83,0.69650677]
[1767855672876,9.29322605,134.87,134.83,0.69650677]
[1767855673179,0.28432314,134.87,134.83,0.69650677]
[1767855673381,9.29322605,134.87,134.83,0.69650677]
[1767855673582,9.29322605,134.87,134.8,7.41823982]
[1767855673583,9.00890291,134.84,134.8,0.69650677]
[1767855673756,22.54890291,134.83,134.8,0.69650677]
[1767855674158,13.54,134.83,134.8,0.69650677]
[1767855674467,9.00890291,134.82,134.78,0.69650677]
[1767855674664,0.28432314,134.82,134.78,0.69650677]
[1767855674965,9.00890291,134.81,134.78,0.69650677]
[1767855675558,9.29322605,134.82,134.78,0.69650677]
[1767855675858,9.00890291,134.8,134.76,0.69650677]
[1767855676176,13.54,134.79,134.75,0.69650677]
[1767855676380,22.54890291,134.79,134.75,0.69650677]
[1767855676680,13.54,134.79,134.76,9.70540968]
[1767855677069,13.54,134.79,134.76,0.69650677]
[1767855677368,13.54,134.79,134.75,0.69650677]
[1767855677566,22.54890291,134.79,134.75,0.69650677]
[1767855677765,13.54,134.79,134.75,0.69650677]
[1767855678157,0.28432314,134.78,134.73,0.69650677]
[1767855678356,0.28432314,134.78,134.71,0.69650677]
[1767855678357,9.00890291,134.75,134.71,0.69650677]
[1767855678680,13.54,134.75,134.71,0.69650677]
[1767855678988,13.54,134.75,134.72,0.69650677]
[1767855679962,13.54,134.75,134.71,9.00890291]
[1767855679963,13.82432314,134.75,134.71,9.00890291]
[1767855680261,13.82432314,134.75,134.71,9.70540968]
[1767855680681,13.82432314,134.75,134.71,0.69650677]
[1767855680858,9.00890291,134.72,134.67,0.69650677]
[1767855681060,9.2185312,134.7,134.63,0.69650677]
[1767855681264,9.2185312,134.7,134.63,9.70540968]
[1767855681265,0.28432314,134.69,134.63,9.70540968]
[1767855681466,22.75748019,134.68,134.61,0.69650677]
[1767855681789,0.28432314,134.67,134.62,9.70540968]
[1767855681983,9.29322605,134.67,134.62,0.69650677]
[1767855682284,13.54,134.66,134.62,9.70540968]
[1767855682495,13.54,134.66,134.63,0.69650677]
[1767855682661,0.28432314,134.68,134.64,9.00890291]
[1767855682866,0.28432314,134.68,134.56,16.69431961]
[1767855682867,0.33863857,134.65,134.56,16.69431961]
[1767855683083,9.29322605,134.62,134.56,26.39972929]
[1767855683280,13.54,134.64,134.53,0.69650677]
[1767855683281,0.28432314,134.57,134.53,0.69650677]
[1767855683485,0.28432314,134.59,134.53,0.69650677]
[1767855683673,9.00890291,134.56,134.51,0.69650677]
[1767855683878,9.00890291,134.56,134.48,0.69650677]
[1767855683879,9.00890291,134.55,134.48,0.69650677]
[1767855684079,13.82432314,134.56,134.47,0.69650677]
[1767855684392,13.82432314,134.56,134.34,54.12693683]
[1767855684393,9.00890291,134.55,134.49,9.70540968]
[1767855684595,9.00890291,134.54,134.49,0.69650677]
[1767855684760,0.14216157,134.53,134.43,0.69650677]
[1767855684961,9.00890291,134.47,134.41,0.69650677]
[1767855685274,9.00890291,134.46,134.41,0.69650677]
[1767855685474,0.30559492,134.49,134.42,0.69650677]
[1767855685667,36.39229204,134.55,134.34,54.12693683]
[1767855685668,0.30559492,134.55,134.45,0.69650677]
[1767855685869,0.66936279,134.51,134.45,0.69650677]
[1767855686392,0.56936279,134.5,134.46,9.00890291]
[1767855686579,0.099,134.51,134.46,9.00890291]
[1767855686773,13.56,134.55,134.37,74.64108418]
[1767855686774,0.10365659,134.49,134.42,0.69650677]
[1767855687180,0.56936279,134.53,134.45,0.69650677]
[1767855687487,9.57356207,134.53,134.45,0.69650677]
[1767855687665,9.57356207,134.53,134.36,9.55526969]
[1767855687666,9.68194013,134.48,134.4,7.44043677]
[1767855687863,0.67303722,134.48,134.4,7.44043677]
[1767855688196,0.67303722,134.48,134.33,7.44410101]
[1767855688197,13.56,134.48,134.33,7.44410101]
[1767855688377,6.6801107,134.45,134.34,16.33733188]
[1767855688567,9.00890291,134.42,134.27,7.44738058]
[1767855688791,3.866,134.3,134.15,37.21876939]
[1767855689098,33.60143881,134.4,134.24,7.44922249]
[1767855689265,33.60143881,134.4,134.24,25.57258363]
[1767855689266,9.00890291,134.32,134.24,25.57258363]
[1767855689465,22.28,134.39,134.17,37.44526707]
[1767855689466,20.2401107,134.36,134.17,37.44526707]
[1767855689668,6.6801107,134.33,134.19,8.14807415]
[1767855689867,6.6801107,134.33,134.15,6.08219841]
[1767855689868,6.6801107,134.32,134.23,7.44988011]
[1767855690073,13.56,134.31,134.2,18.62884302]
[1767855690270,13.56,134.31,134.15,0.69650677]
[1767855690271,9.00890291,134.25,134.15,0.69650677]
[1767855690496,22.56890291,134.31,134.18,0.69650677]
[1767855690497,13.56,134.24,134.18,0.69650677]
[1767855690667,7.44878957,134.25,134.09,9.00890291]
[1767855690875,0.67303722,134.28,134.1,7.45712155]
[1767855691076,22.28,134.28,134.1,26.09992542]
[1767855691270,3.86871362,134.31,134.1,26.09992542]
[1767855691575,15.0,134.35,134.13,6.6801107]
[1767855691779,18.86877944,134.37,134.24,6.6801107]
[1767855692011,24.87109233,134.37,134.24,6.6801107]
[1767855692164,37.28,134.36,134.24,6.6801107]
[1767855692371,14.25268914,134.4,134.24,13.56]
[1767855692576,15.0,134.46,134.24,13.56]
[1767855692577,3.86829937,134.42,134.28,0.67628595]
[1767855692776,43.29067444,134.52,134.24,13.56]
[1767855692777,3.86591581,134.39,134.3,0.67628595]
[1767855692976,9.00890291,134.42,134.34,0.67628595]
[1767855693196,24.88579099,134.46,134.34,0.67628595]
[1767855693502,15.0,134.44,134.31,0.67628595]
[1767855693705,6.6801107,134.41,134.28,0.67628595]
[1767855693876,13.58,134.4,134.33,9.00890291]
[1767855694079,13.58,134.4,134.3,0.67628595]
[1767855694516,13.58,134.4,134.32,5.58002003]
[1767855694698,0.4443335,134.38,134.33,5.58002003]
[1767855694901,0.4443335,134.38,134.3,8.12229521]
[1767855695114,13.58,134.4,134.28,8.12307004]
[1767855695115,0.69020558,134.36,134.28,8.12307004]
[1767855695272,6.02681225,134.35,134.29,5.58002003]
[1767855695471,0.44679222,134.35,134.26,0.67628595]
[1767855695694,5.58002003,134.36,134.3,5.58002003]
[1767855695695,0.68777145,134.34,134.3,5.58002003]
[1767855695893,0.5,134.37,134.27,0.67628595]
[1767855696097,0.69268914,134.36,134.29,8.12231365]
[1767855696399,0.69020558,134.37,134.31,0.67628595]
[1767855696608,0.69020558,134.37,134.32,5.58002003]
[1767855696823,0.44920201,134.34,134.27,8.12372703]
[1767855697111,6.02922204,134.34,134.27,0.67628595]
[1767855697310,29.12129736,134.39,134.23,0.67628595]
[1767855697311,0.68304754,134.31,134.23,0.67628595]
[1767855697489,0.68304754,134.31,134.15,37.2692483]
[1767855697490,0.45387868,134.3,134.19,8.12812895]
[1767855697673,0.68075585,134.26,134.19,0.67628595]
[1767855697878,0.68075585,134.26,134.22,5.58002003]
[1767855698104,6.02922204,134.23,134.09,0.67628595]
[1767855698306,6.02922204,134.23,134.01,37.67130054]
[1767855698307,0.45156384,134.19,134.1,0.67628595]
[1767855698598,0.45387868,134.17,134.1,0.67628595]
[1767855698789,6.03389871,134.17,134.1,0.67628595]
[1767855699099,15.0,134.27,134.15,5.58002003]
[1767855699302,33.95682081,134.58,134.18,5.58002003]
[1767855699303,6.27270917,134.24,134.18,5.58002003]
[1767855699602,5.58002003,134.2,134.13,0.67628595]
[1767855699900,5.58002003,134.2,134.0,6.8730107]
[1767855699901,0.67850977,134.1,134.0,6.8730107]
[1767855700082,0.69268914,134.06,134.0,6.8730107]
[1767855700274,0.4443335,134.09,134.01,0.67628595]
[1767855700478,0.4443335,134.09,134.0,6.8730107]
[1767855700479,0.4443335,134.09,134.0,3.0]
[1767855700480,5.58002003,134.02,134.0,3.0]
[1767855700686,5.58002003,134.02,133.99,3.25012394]
[1767855700876,5.58002003,134.09,133.99,3.25012394]
[1767855700877,15.0,134.1,134.0,0.67628595]
[1767855701071,0.099,134.09,134.0,0.67628595]
[1767855701277,0.34431429,134.08,133.99,3.25012394]
[1767855701513,0.10145315,134.06,133.99,3.25012394]
[1767855701809,0.099,134.15,134.02,0.67628595]
[1767855702008,0.099,134.15,134.0,0.67628595]
[1767855702009,0.34679222,134.09,134.0,0.67628595]
[1767855702299,0.099,134.11,134.0,0.67628595]
[1767855702500,9.06874423,134.0,133.99,3.25012394]
[1767855702685,9.06874423,134.0,133.87,3.87444297]
[1767855702686,0.42872451,133.99,133.87,3.87444297]
[1767855702885,7.46168009,134.02,133.94,9.06874423]
[1767855702886,9.06874423,134.02,133.94,9.06874423]
[1767855703203,9.06874423,134.02,133.82,13.58]
[1767855703204,0.43384673,133.94,133.82,13.58]
[1767855703400,0.68233912,133.91,133.79,3.87521715]
[1767855703601,28.6,133.96,133.85,7.47050871]
[1767855703602,0.69268914,133.94,133.85,7.47050871]
[1767855703904,13.6,133.96,133.74,26.17018094]
[1767855703905,0.43131136,133.88,133.74,26.17018094]
[1767855704103,21.6801107,133.93,133.74,26.17018094]
[1767855704104,0.6900231,133.92,133.74,30.04738758]
[1767855704281,0.42872451,133.91,133.83,9.06874423]
[1767855704482,0.43131136,133.88,133.79,0.67628595]
[1767855704685,0.68484914,133.87,133.76,7.47595463]
[1767855704885,0.68484914,133.87,133.72,0.67628595]
[1767855704886,9.06874423,133.79,133.72,0.67628595]
[1767855705107,7.46982236,133.88,133.72,0.67628595]
[1767855705108,0.69268914,133.9,133.79,0.67628595]
[1767855705310,0.6900231,133.88,133.79,0.67628595]
[1767855705518,0.69268914,133.91,133.76,0.67628595]
[1767855705810,0.42872451,133.86,133.76,0.67628595]
[1767855706007,13.6,133.97,133.82,9.06874423]
[1767855706008,0.69268914,133.9,133.82,9.06874423]
[1767855706308,0.42608513,133.89,133.81,0.67628595]
[1767855706518,0.69268914,133.92,133.85,0.67628595]
[1767855706715,9.76143337,133.98,133.9,0.67628595]
[1767855707042,0.69268914,134.01,133.94,0.67628595]
[1767855707214,13.6,134.11,133.94,0.67628595]
[1767855707215,0.69268914,134.07,133.94,0.67628595]
[1767855707394,0.69268914,134.07,133.9,6.6801107]
[1767855707395,9.06874423,134.07,133.99,9.06874423]
[1767855707591,13.6,134.11,133.99,9.06874423]
[1767855707592,36.05668066,134.11,133.99,9.74503018]
[1767855707812,13.6,134.11,133.99,0.67628595]
[1767855707987,36.05671298,134.11,133.99,0.67628595]
[1767855708184,36.05671298,134.11,133.87,101.34523616]
[1767855708185,15.0,134.09,133.93,0.67628595]
[1767855708387,9.06874423,134.01,133.94,9.74503018]
[1767855708590,9.06874423,134.0,133.94,0.67628595]
[1767855708796,9.06874423,134.01,133.95,0.67628595]
[1767855708995,15.0,134.1,133.97,0.67628595]
[1767855709205,9.06874423,134.05,133.98,0.67628595]
[1767855709407,13.6,134.11,133.99,0.67628595]
[1767855709408,9.06874423,134.06,133.99,0.67628595]
[1767855709616,9.06874423,134.03,133.96,9.74503018]
[1767855709790,0.099,134.06,133.98,0.67628595]
[1767855709990,0.32807513,134.05,133.96,9.74503018]
[1767855710190,0.32807513,134.05,133.97,0.67628595]
[1767855710410,9.06874423,134.07,134.0,9.06874423]
[1767855710606,9.06874423,134.07,133.94,7.46568842]
[1767855710607,7.45520613,134.14,134.03,9.74503018]
[1767855710903,68.98322579,134.24,134.07,9.74503018]
[1767855710904,7.45312778,134.18,134.07,9.74503018]
[1767855711107,0.33038903,134.18,134.09,9.74503018]
[1767855711305,0.33038903,134.18,134.07,0.67628595]
[1767855711306,9.06874423,134.14,134.07,0.67628595]
[1767855711516,0.33038903,134.18,134.08,0.67628595]
[1767855711816,9.06874423,134.15,134.09,0.67628595]
[1767855712112,7.78034957,134.23,134.13,9.74503018]
[1767855712317,9.06874423,134.16,134.1,0.67628595]
[1767855712499,9.06874423,134.15,134.1,0.67628595]
[1767855712814,0.32807513,134.2,134.1,9.74503018]
[1767855712815,9.06874423,134.17,134.1,9.74503018]
[1767855712991,0.32807513,134.2,134.06,18.64800574]
[1767855712992,9.06874423,134.13,134.07,0.67628595]
[1767855713412,9.06874423,134.13,134.08,0.67628595]
[1767855713714,21.6801107,134.19,134.06,16.52790715]
[1767855713715,9.06874423,134.17,134.11,0.67628595]
[1767855713918,7.7808435,134.22,134.11,0.67628595]
[1767855714119,7.7808435,134.22,134.09,7.4576582]
[1767855714120,0.33038903,134.22,134.13,0.67628595]
[1767855714417,9.06874423,134.2,134.14,0.67628595]
[1767855714613,7.77962303,134.25,134.1,26.09969752]
[1767855714614,9.06874423,134.21,134.15,0.67628595]
[1767855714917,9.06874423,134.2,134.16,0.67628595]
[1767855715615,9.06874423,134.2,134.13,9.06874423]
[1767855715616,0.099,134.23,134.13,0.67628595]
[1767855715918,9.06874423,134.17,134.13,0.67628595]
[1767855716215,9.06874423,134.18,134.13,0.67628595]
[1767855716403,9.06874423,134.15,134.11,0.67628595]
[1767855716600,9.06874423,134.12,134.08,0.67628595]
[1767855717121,21.6801107,134.2,134.1,0.67628595]
[1767855717122,14.46235409,134.2,134.1,0.67628595]
[1767855717290,14.46235409,134.2,134.12,0.67628595]
[1767855717291,9.06874423,134.18,134.12,0.67628595]
[1767855717617,9.06874423,134.14,134.09,0.67628595]
[1767855717810,9.06874423,134.16,134.1,0.67628595]
[1767855718119,9.06874423,134.14,134.1,0.67628595]
[1767855718297,9.06874423,134.13,134.08,0.67628595]
[1767855718500,9.06874423,134.11,134.06,0.67628595]
[1767855718691,9.06874423,134.1,134.06,0.67628595]
[1767855718890,9.06874423,134.13,134.06,0.67628595]
[1767855719120,0.28432314,134.16,134.07,0.67628595]
[1767855719323,9.06874423,134.14,134.07,0.67628595]
[1767855719994,9.06874423,134.12,134.07,0.67628595]
[1767855720195,0.33038903,134.17,134.04,0.67628595]
[1767855720196,0.32807513,134.14,134.04,0.67628595]
[1767855720396,0.32807513,134.14,134.05,0.67628595]
[1767855720597,9.06874423,134.13,134.07,0.67628595]
[1767855721000,9.06874423,134.16,134.1,0.67628595]
[1767855721211,9.06874423,134.17,134.1,0.67628595]
[1767855721412,9.06874423,134.16,134.11,0.67628595]
[1767855721596,0.32580728,134.16,134.07,8.13499204]
[1767855721797,41.0789764,134.21,134.08,0.67628595]
[1767855721798,0.33038903,134.19,134.08,0.67628595]
[1767855722037,0.33038903,134.19,134.1,0.65936106]
[1767855722226,7.55045238,134.21,134.11,0.65936106]
[1767855722430,0.33038903,134.23,134.12,0.65936106]
[1767855722725,13.62,134.24,134.16,0.65936106]
[1767855722726,9.06874423,134.22,134.16,0.65936106]
[1767855722907,9.06874423,134.23,134.16,0.65936106]
[1767855723106,9.06874423,134.21,134.16,0.65936106]
[1767855723304,9.06874423,134.22,134.16,0.65936106]
[1767855723501,9.06874423,134.21,134.16,0.65936106]
[1767855723707,13.62,134.24,134.17,0.67831843]
[1767855723901,9.06874423,134.22,134.17,0.67831843]
[1767855724554,9.06874423,134.23,134.17,0.67831843]
[1767855725044,9.06874423,134.25,134.18,0.67831843]
[1767855725337,13.55390351,134.25,134.18,0.67831843]
[1767855725499,13.55390351,134.26,134.19,0.67831843]
[1767855725697,0.33038903,134.27,134.19,0.67831843]
[1767855725698,21.33207452,134.27,134.19,14.23222194]
[1767855725914,21.33207452,134.27,134.19,0.67831843]
[1767855725915,7.77817101,134.27,134.19,0.67831843]
[1767855726127,13.55390351,134.27,134.2,0.67831843]
[1767855726325,30.0570541,134.29,134.2,0.67831843]
[1767855726541,13.55390351,134.28,134.21,0.67831843]
[1767855726838,0.32807513,134.29,134.2,0.67831843]
[1767855727043,7.44499646,134.32,134.24,0.67831843]
[1767855727246,13.55390351,134.3,134.24,0.67831843]
[1767855727542,7.54399646,134.32,134.24,0.67831843]
[1767855727714,13.55390351,134.3,134.24,0.67831843]
[1767855727914,18.61075084,134.34,134.24,0.67831843]
[1767855727915,7.54279931,134.34,134.24,0.67831843]
[1767855728111,13.55390351,134.32,134.24,0.67831843]
[1767855728337,13.55390351,134.3,134.24,0.67831843]
[1767855728538,0.32807513,134.33,134.24,0.67831843]
[1767855728740,7.44561261,134.31,134.24,0.67831843]
[1767855728943,15.0,134.35,134.26,0.67831843]
[1767855728944,7.44324525,134.35,134.26,0.67831843]
[1767855729118,13.55390351,134.33,134.26,0.67831843]
[1767855729642,13.55390351,134.31,134.26,0.67831843]
[1767855729837,13.55390351,134.3,134.26,0.67831843]
[1767855730136,0.10129076,134.33,134.16,6.6801107]
[1767855730348,0.10129076,134.33,134.19,0.67831843]
[1767855730349,13.55390351,134.26,134.19,0.67831843]
[1767855730546,0.31927095,134.26,134.19,0.67831843]
[1767855731051,7.44878957,134.25,134.19,0.67831843]
[1767855731212,13.55390351,134.2,134.11,0.67831843]
[1767855731417,0.14216157,134.24,134.11,0.67831843]
[1767855731418,13.55390351,134.16,134.11,0.67831843]
[1767855731720,13.55390351,134.17,134.11,0.67831843]
[1767855732530,7.44878957,134.25,134.17,0.67831843]
[1767855732727,21.06669555,134.29,134.2,0.67831843]
[1767855732938,21.06669555,134.29,134.22,0.67831843]
[1767855732939,13.62,134.29,134.22,0.67831843]
[1767855733154,13.55390351,134.28,134.22,0.67831843]
[1767855733330,15.33038903,134.35,134.22,0.67831843]
[1767855733640,13.55390351,134.26,134.23,0.67831843]
[1767855733826,13.55390351,134.26,134.2,0.67831843]
[1767855734033,13.55390351,134.25,134.2,0.67831843]
[1767855734433,13.55390351,134.23,134.2,0.67831843]
[1767855734634,13.55390351,134.22,134.2,0.67831843]
[1767855734832,7.44775148,134.27,134.2,0.67831843]
[1767855735026,6.82227227,134.28,134.2,0.67831843]
[1767855735027,13.55390351,134.25,134.2,0.67831843]
[1767855735247,0.10573642,134.27,134.16,0.67831843]
[1767855735548,13.6,134.28,134.17,0.67831843]
[1767855735844,0.28432314,134.28,134.2,0.67831843]
[1767855736049,13.55390351,134.25,134.2,0.67831843]
[1767855736340,13.55390351,134.26,134.2,0.67831843]
[1767855736544,13.55390351,134.25,134.2,0.67831843]
[1767855737314,13.55390351,134.24,134.2,0.67831843]
[1767855737720,7.44785075,134.27,134.2,0.67831843]
[1767855737721,13.55390351,134.25,134.2,0.67831843]
[1767855737944,13.55390351,134.26,134.2,0.67831843]
[1767855738246,13.55390351,134.23,134.2,0.67831843]
[1767855738448,26.67542043,134.29,134.2,0.67831843]
[1767855738643,13.55390351,134.24,134.2,0.67831843]
[1767855739025,13.55390351,134.25,134.2,0.67831843]
[1767855739228,13.55390351,134.25,134.18,13.55390351]
[1767855739566,13.55390351,134.26,134.2,0.67831843]
[1767855739755,20.2801107,134.32,134.22,14.23222194]
[1767855739756,20.96041272,134.32,134.22,14.23222194]
[1767855739922,13.6,134.32,134.24,0.67831843]
[1767855740129,0.68030202,134.34,134.25,0.67831843]
[1767855740323,0.68030202,134.34,134.26,0.67831843]
[1767855740523,0.68030202,134.36,134.26,0.67831843]
[1767855740722,0.68030202,134.36,134.2,26.36468416]
[1767855740723,8.12188739,134.38,134.28,0.67831843]
[1767855740930,13.55390351,134.33,134.3,0.67831843]
[1767855741126,8.12284078,134.37,134.3,0.67831843]
[1767855741326,13.55390351,134.34,134.3,0.67831843]
[1767855741525,8.12284078,134.37,134.3,0.67831843]
[1767855741729,13.55390351,134.34,134.27,0.67831843]
[1767855741953,0.68030202,134.36,134.28,0.67831843]
[1767855742332,13.55390351,134.33,134.28,0.67831843]
[1767855742536,13.55390351,134.37,134.31,0.67831843]
[1767855743048,13.55390351,134.38,134.31,0.67831843]
[1767855743253,18.59878529,134.42,134.35,0.67831843]
[1767855743254,14.23420553,134.42,134.35,0.67831843]
[1767855743453,13.55390351,134.42,134.35,0.67831843]
[1767855743646,0.1,134.43,134.37,0.67831843]
[1767855743844,0.1,134.43,134.38,0.67831843]
[1767855744050,0.1,134.43,134.39,0.67831843]
[1767855744354,0.1,134.43,134.36,0.67831843]
[1767855744355,0.78030202,134.43,134.36,0.67831843]
[1767855745051,0.78030202,134.43,134.37,13.55390351]
[1767855745260,0.1,134.43,134.38,0.67831843]
[1767855745429,0.1,134.43,134.38,14.23222194]
[1767855745635,13.55390351,134.41,134.35,0.67831843]
[1767855746251,13.55390351,134.4,134.35,0.67831843]
[1767855746435,13.55390351,134.36,134.3,0.67831843]
[1767855746633,0.68030202,134.39,134.3,0.67831843]
[1767855747082,0.28432314,134.41,134.28,0.67831843]
[1767855747083,13.55390351,134.34,134.28,0.67831843]
[1767855747357,13.55390351,134.33,134.28,0.67831843]
[1767855747966,13.55390351,134.35,134.28,0.67831843]
[1767855748265,6.6801107,134.39,134.33,0.67831843]
[1767855748482,13.55390351,134.37,134.31,0.67831843]
[1767855748655,14.23420553,134.39,134.32,14.23222194]
[1767855748842,7.53896491,134.43,134.35,0.67831843]
[1767855749043,0.68030202,134.42,134.35,0.67831843]
[1767855749247,0.1,134.43,134.36,0.67831843]
[1767855749554,0.68030202,134.46,134.38,14.23222194]
[1767855749755,17.12641858,134.47,134.4,0.67831843]
[1767855750061,13.55390351,134.46,134.4,0.67831843]
[1767855750265,17.12641858,134.47,134.4,0.67831843]
[1767855750465,17.12641858,134.47,134.42,0.67831843]